Cogmind - Beta 14 @@@ ROGUE MODE // 2024.11.11 @ 01:42:04 Player: JP Result: Destroyed by B-75 Beast with Magnetic Acceleration Cannon Performance ------------- Evolutions (4) 2000 Regions Visited (7) 1400 Robots Destroyed (67) 335 Value Destroyed (2330) 2330 Prototype IDs (24) 480 Alien Tech Used (0) 0 Bonus (311) 311 TOTAL SCORE: 6856 Bonus ------- High Alert Combat Kills 11 Aligned with FarCom 300 Cogmind --------- Core Integrity 0/850 Matter 295/300 Energy 99/100 System Corruption 6% Temperature Hot (231) Movement Core (50) Location -6/Factory Parts ------- > --- POWER (1) -------- (None) > --- PROPULSION (4) --- (None) > --- UTILITY (7) ------ (None) > --- WEAPON (3) ------- (None) > --- INVENTORY (5) ---- Micro Nuclear Core Improved Heat Sink Melee Analysis Suite Thermic Laser Missile Launcher Peak State ------------ > --- POWER ------------ Improved Deuterium Engine > --- PROPULSION ------- Improved Carbon-fiber Leg Improved Carbon-fiber Leg Improved Carbon-fiber Leg Improved Titanium Leg > --- UTILITY ---------- Advanced Heat Sink Medium Storage Unit Improved Signal Interpreter Improved Targeting Computer Improved Targeting Computer Energy Filter Improved Medium Armor Plating > --- WEAPON ----------- Gatling Laser Gatling Laser Thermic Laser > --- INVENTORY -------- Light Fission Core Improved Cooling System Medium Storage Unit Melee Analysis Suite Improved Reaction Control System Hacking Suite Heavy Laser Rocket Launcher Katana [Rating: 57] Favorites ----------- Power Light Nuclear Core Engine Light Deuterium Engine Power Core Light Nuclear Core Propulsion Improved Carbon-fiber Leg Treads Light Treads Leg Improved Carbon-fiber Leg Wheel Wheel Hover Unit Gravmag System Flight Unit Xenon Bombardment Thruster Utility Improved Targeting Computer Device Improved Heat Sink Storage Medium Storage Unit Processor Improved Targeting Computer Protection Improved Medium Armor Plating Weapon Heavy Laser Energy Gun Heavy Laser Ballistic Gun Light Assault Rifle Launcher Grenade Launcher Slashing Weapon Katana Build | -11 -10 -10 -10 -9 -8 -7 -6 ------- Run | Yrd Mat Min Exi Min Mat Fac Fac Slots Evolved 8 | . . . . . 4 2 2 Power . | . . . . . . . . Propulsion 2 | . . . . . 2 . . Utility 5 | . . . . . 2 2 1 Weapon 1 | . . . . . . . 1 Parts Attached 102 | 5 6 7 1 3 29 5 46 Power 13 | . 1 2 . . 2 1 7 Engine 5 | . 1 . . . 2 . 2 Core 8 | . . 2 . . . 1 5 Reactor . | . . . . . . . . Propulsion 28 | 2 1 4 . . 8 . 13 Treads 3 | 2 1 . . . . . . Leg 17 | . . 4 . . 7 . 6 Wheel 1 | . . . . . 1 . . Hover 3 | . . . . . . . 3 Flight 4 | . . . . . . . 4 Utility 30 | 1 2 . . . 12 4 11 Device 14 | . . . . . 4 2 8 Storage 3 | 1 . . . . 1 . 1 Processor 5 | . 1 . . . 2 1 1 Hackware . | . . . . . . . . Protection 8 | . 1 . . . 5 1 1 Artifact . | . . . . . . . . Weapon 31 | 2 2 1 1 3 7 . 15 Energy Gun 19 | 1 1 . . 1 6 . 10 Energy Cannon . | . . . . . . . . Ballistic Gun 5 | 1 1 1 1 1 . . . Ballistic Cannon . | . . . . . . . . Launcher 3 | . . . . 1 1 . 1 Special Weapon . | . . . . . . . . Impact Weapon . | . . . . . . . . Slashing Weapon 4 | . . . . . . . 4 Piercing Weapon . | . . . . . . . . Special Melee Weapon . | . . . . . . . . Unidentified Prototypes 1 | . . . . . . . 1 Corrupted Parts 1 | . 1 . . . . . . System Corruption 2 | . 2 . . . . . . Parts Lost 29 | . . 4 . . 6 . 19 Power 4 | . . 1 . . 1 . 2 Propulsion 13 | . . 2 . . 3 . 8 Utility 8 | . . . . . 2 . 6 Weapon 4 | . . 1 . . . . 3 Highest Loss Streak 7 | . . 3 . . 3 . 7 To Critical Strikes . | . . . . . . . . Average Slot Usage (%) 90 | . 86 94 82 98 91 100 87 Engine 3 | . 5 5 . . 2 5 2 Core 4 | . . 7 14 14 2 1 3 Treads 2 | . 27 13 . . . . . Leg 22 | . . 14 28 28 31 30 18 Device 7 | . . . . . 8 7 12 Storage 8 | . 14 14 14 14 9 7 5 Processor 15 | . 1 14 14 14 9 23 18 Protection 4 | . 11 . . . 8 7 3 Energy Gun 12 | . 13 . . 12 16 15 14 Ballistic Gun 3 | . 13 22 11 . . . . Launcher 1 | . . . . 13 1 . . Peak Build Rating 57 | 5 7 9 24 10 38 46 57 Average Rating 31 | 4 6 7 15 9 22 43 48 On Entrance 17 | . 5 7 9 24 10 38 45 Naked Turns 27 | . . . . . . . 27 Heaviest Build 43 | 8 12 12 20 16 32 28 43 Greatest Support 74 | 40 40 40 20 20 72 72 74 Greatest Overweight (x) 2 | 1 . . . . 2 . 2 Average Overweight (x) . | . . . . . . . . Largest Inventory Capacity 10 | 8 8 8 8 8 10 10 10 Average Capacity 9 | 7 8 8 8 8 9 10 9 Most Carried 10 | 7 8 7 8 8 10 10 10 Average Carried 8 | 3 7 6 7 5 9 9 9 Final Capacity 10 | 8 8 8 8 8 10 10 5 Final Carried 10 | 7 7 7 8 5 10 10 5 Class Distribution -------------------- 46% | Mutant 27% | Scavenger-Mutant 23% | Gunner Dominant Class ---------------- Mutant | -10/Materials Mutant | -10/Mines Mutant | -10/Exiles Scavenger-Mutant | -9/Mines Scavenger-Mutant | -8/Materials Mutant | -7/Factory Gunner | -6/Factory Resources | -11 -10 -10 -10 -9 -8 -7 -6 ----------- Run | Yrd Mat Min Exi Min Mat Fac Fac Matter Collected 1539 | 93 43 199 . . 391 104 709 Remotely . | . . . . . . . . Salvage Created 2555 | . 96 133 . 51 1091 89 1095 Parts 134 | . 10 7 . 8 54 5 50 Haulers Intercepted . | . . . . . . . . Recyclers Shooed 3 | . . . . . 3 . . Parts Field Recycled . | . . . . . . . . Retrieved Matter . | . . . . . . . . Parts Self-Destructed . | . . . . . . . . Prevented . | . . . . . . . . Kills | -11 -10 -10 -10 -9 -8 -7 -6 ------- Run | Yrd Mat Min Exi Min Mat Fac Fac Combat Hostiles Destroyed 51 | . 3 3 . 5 20 1 19 Melee 4 | . . . . . . . 4 Guns 28 | . 1 3 . . 10 1 13 AOE 16 | . 2 . . 5 9 . . Classes Destroyed 13 | . 2 1 . . 6 2 2 Worker 5 | . . . . . 3 1 1 Builder 1 | . . . . . 1 . . Tunneler 1 | . . . . . . 1 . Recycler 4 | . . . . . 3 . 1 Watcher 5 | . 2 . . . 2 . 1 Swarmer 14 | . 3 . . 3 4 . 4 Grunt 15 | . . 3 . 2 9 . 1 Brawler 1 | . . . . . 1 . . Duelist 1 | . . . . . . . 1 Sentry 8 | . . . . . 5 . 3 Specialist 4 | . . . . . . . 4 Hunter 3 | . . . . . 1 . 2 Programmer 5 | . . . . . . 1 4 Best Kill Streak 11 | . 3 1 . 3 11 2 4 Combat Bots Only 9 | . 3 1 . 3 9 1 4 Max Kills in Single Turn 4 | . 2 1 . 2 4 1 2 Gunslinging 1 | . . . . . . . 1 Exploded 3 | . 2 . . 2 3 . . Melee 1 | . . . . . . . 1 Uniques/NPCs Destroyed . | . . . . . . . . Combat | -11 -10 -10 -10 -9 -8 -7 -6 -------- Run | Yrd Mat Min Exi Min Mat Fac Fac Hostile Shots Fired 472 | . 31 25 . 11 92 10 303 Missed 134 | . 4 1 . 3 28 1 97 Damage Taken 4868 | . 245 383 . 100 926 135 3079 Core 1126 | . 23 27 . 40 153 14 869 Absorbed by Shields . | . . . . . . . . Redirected to Shielding 75 | . 9 . . . . 66 . Core Remaining (%) 83 | 100 . . . 64 72 98 . Volleys Fired 160 | . 9 20 . 6 71 9 45 Largest 3 | . 2 2 . 1 2 2 3 Hottest 245 | . 60 60 . 30 140 138 245 Shots Fired 299 | . 18 40 . 6 102 18 115 Gun 278 | . 18 40 . . 89 18 113 Cannon . | . . . . . . . . Launcher 21 | . . . . 6 13 . 2 Special . | . . . . . . . . Kinetic 48 | . 9 39 . . . . . Thermal 217 | . . . . . 89 18 110 Explosive 21 | . . . . 6 13 . 2 Electromagnetic 13 | . 9 1 . . . . 3 Robot Hit Streak 23 | . 5 14 . 4 15 3 23 Robot Miss Streak 4 | . 3 1 . 1 3 2 4 Penetration Max . | . . . . . . . . Secondary Targets 4 | . . . . . . . 4 Max Gunslinging Chain 1 | . . . . . . . 1 Shots Hit Robots 222 | . 10 35 . 4 65 12 96 Core Hits 136 | . 5 12 . 7 48 4 60 Critical Kills . | . . . . . . . . Critical Parts Destroyed . | . . . . . . . . Critical Strikes 11 | . 1 . . . 4 1 5 Burn 6 | . . . . . 4 1 1 Corrupt 1 | . 1 . . . . . . Sever 4 | . . . . . . . 4 Melee Attacks 38 | . . . . . . . 38 Impact . | . . . . . . . . Slashing 38 | . . . . . . . 38 Piercing . | . . . . . . . . Sneak Attacks 1 | . . . . . . . 1 Combat Hostiles . | . . . . . . . . Follow-up Attacks . | . . . . . . . . Damage Inflicted 5540 | . 208 317 . 298 2055 266 2396 Guns 3710 | . 135 274 . . 1095 266 1940 Cannons . | . . . . . . . . Explosions 1438 | . 73 43 . 298 960 . 64 Melee 389 | . . . . . . . 389 Ramming 3 | . . . . . . . 3 Kinetic 281 | . 22 259 . . . . . Thermal 3415 | . 73 43 . . 1095 266 1938 Explosive 1258 | . . . . 298 960 . . Electromagnetic 194 | . 113 15 . . . . 66 Impact . | . . . . . . . . Slashing 389 | . . . . . . . 389 Piercing . | . . . . . . . . Highest Corruption 6 | . 2 2 2 2 3 1 6 Average Corruption 2 | . 2 2 2 2 2 1 3 Corruption Purged . | . . . . . . . . Corruption Blocked . | . . . . . . . . Effects 44 | . 1 6 2 3 20 1 11 Message Errors 10 | . 1 1 . . 5 1 2 Matter Fused 10 | . . 1 . 1 7 . 1 Heat Flow Errors 6 | . . 1 . 1 1 . 3 Energy Discharges 4 | . . . . . 3 . 1 Parts Rejected 1 | . . . . . . . 1 Parts Fused 1 | . . 1 . . . . . Data Loss (minor) 4 | . . . 1 . 1 . 2 Data Loss (major) 5 | . . 2 1 1 1 . . Misfires 1 | . . . . . 1 . . Alerts 1 | . . . . . . . 1 Weapon Failures 1 | . . . . . 1 . . Overload Shots . | . . . . . . . . Overflow Damage 141 | . 18 21 . . 20 . 82 Projectiles . | . . . . . . . . Explosions 111 | . 18 21 . . 20 . 52 Melee 30 | . . . . . . . 30 Knockbacks . | . . . . . . . . Impact . | . . . . . . . . Kinetic . | . . . . . . . . Secondary . | . . . . . . . . Self-Inflicted Damage 195 | . 34 34 . 23 47 . 57 Shots 5 | . 1 1 . 1 1 . 1 Rammed . | . . . . . . . . Targets Rammed 1 | . . . . . . . 1 Kicked 1 | . . . . . . . 1 Crushed . | . . . . . . . . Highest Temperature 654 | . 22 273 . 189 471 432 654 Average Temperature 149 | . 8 52 . 79 133 178 196 Received Heat Transfer 1269 | . . 201 . 21 387 . 660 Effects 22 | . . . . . 6 2 14 Shutdowns 4 | . . . . . . . 4 Energy Bleed 4 | . . . . . 1 . 3 Interference 9 | . . . . . 4 2 3 Matter Decay 2 | . . . . . . . 2 Short Circuit 2 | . . . . . 1 . 1 Damage (major) 1 | . . . . . . . 1 Siege Activations . | . . . . . . . . Robots Corrupted . | . . . . . . . . Combat Hostiles . | . . . . . . . . Parts Fried . | . . . . . . . . Impact Corruptions . | . . . . . . . . Robots Melted 3 | . . . . . 1 . 2 Combat Hostiles 3 | . . . . . 1 . 2 Parts Melted 37 | . . . . . 9 1 27 Heat Transferred 7608 | . 100 50 . . 2627 518 4313 Parts Sabotaged . | . . . . . . . . Parts Stolen . | . . . . . . . . Parts Stripped . | . . . . . . . . Power Chain Reactions 3 | . 1 1 . . . . 1 Alert | -11 -10 -10 -10 -9 -8 -7 -6 ------- Run | Yrd Mat Min Exi Min Mat Fac Fac Peak Influence 414 | . 109 135 . 169 414 240 292 Initial 188 | . . 42 . . 65 188 19 Average 105 | . 70 70 . 153 92 206 101 Maximum Alert Level 2 | . . . . . 2 1 1 Low Security (%) 86 | 100 100 100 . 100 89 17 91 Level 1 11 | . . . . . 1 82 8 Level 2 2 | . . . . . 8 . . Level 3 . | . . . . . . . . Level 4 . | . . . . . . . . Level 5 . | . . . . . . . . High Security . | . . . . . . . . Max Security . | . . . . . . . . Squads Dispatched 8 | . 1 . . . 2 1 4 Investigation 1 | . . . . . 1 . . Extermination 4 | . . . . . . 1 3 Reinforcement 3 | . 1 . . . 1 . 1 Assault . | . . . . . . . . Garrison . | . . . . . . . . Intercept . | . . . . . . . . Searches Triggered . | . . . . . . . . Construction Impeded . | . . . . . . . . Haulers Reinforced . | . . . . . . . . Active Scanning Responses . | . . . . . . . . Cargo Convoy Interrupts 1 | . . . . . . . 1 Stealth | -11 -10 -10 -10 -9 -8 -7 -6 --------- Run | Yrd Mat Min Exi Min Mat Fac Fac Distress Signals 9 | . 1 . . . 5 . 3 Communications Jammed . | . . . . . . . . Distress Signals . | . . . . . . . . Times Spotted 101 | . 9 4 . 5 29 2 52 Peak Tracking Total 9 | . 4 3 . 3 9 1 8 Tactical Retreats 7 | . . 2 . . . . 5 Traps | -11 -10 -10 -10 -9 -8 -7 -6 ------- Run | Yrd Mat Min Exi Min Mat Fac Fac Traps Triggered 6 | . . . . . 3 . 3 Indirectly . | . . . . . . . . Trap Hack Attempts . | . . . . . . . . Triggered . | . . . . . . . . Disarmed . | . . . . . . . . Reprogrammed . | . . . . . . . . Reused . | . . . . . . . . Traps Extracted . | . . . . . . . . Installed . | . . . . . . . . Triggered . | . . . . . . . . Machines | -11 -10 -10 -10 -9 -8 -7 -6 ---------- Run | Yrd Mat Min Exi Min Mat Fac Fac Machines Disabled 4 | . . 1 . 2 1 . . Max in Single Turn 2 | . . 1 . 2 1 . . Machines Repaired . | . . . . . . . . Machines Dismantled . | . . . . . . . . Machines Sabotaged . | . . . . . . . . Overloaded Fab Kills . | . . . . . . . . Hacking | -11 -10 -10 -10 -9 -8 -7 -6 --------- Run | Yrd Mat Min Exi Min Mat Fac Fac Machines Accessed 15 | . 3 1 1 . 5 2 3 Terminals 8 | . 1 1 . . 4 . 2 Fabricators . | . . . . . . . . Repair Stations 1 | . . . . . . 1 . Recycling Units 3 | . 2 . . . 1 . . Scanalyzers 1 | . . . . . . 1 . Garrison Access 1 | . . . . . . . 1 Total Hacks 34 | . 5 1 1 . 14 4 9 Successful 12 | . 4 1 1 . 3 1 2 Failed 22 | . 1 . . . 11 3 7 Catastrophic 3 | . 1 . . . 1 . 1 Database Lockouts . | . . . . . . . . Manual 18 | . 2 . 1 . 9 . 6 Terminals 22 | . 2 1 . . 12 . 7 Fabricators . | . . . . . . . . Repair Stations 2 | . . . . . . 2 . Recycling Units 5 | . 3 . . . 2 . . Scanalyzers 2 | . . . . . . 2 . Garrison Access 2 | . . . . . . . 2 Terminal Hacks 3 | . . 1 1 . . . 1 Registered Components 1 | . . . . . . . 1 Zone Layout 1 | . . 1 . . . . . Derelict Proto ID Bank 1 | . . . 1 . . . . Fabricator Hacks . | . . . . . . . . Repair Station Hacks . | . . . . . . . . Recycling Unit Hacks 4 | . 3 . . . 1 . . Report Inventory 3 | . 2 . . . 1 . . Retrieve Components 1 | . 1 . . . . . . Scanalyzer 1 | . . . . . . 1 . Insert Component 1 | . . . . . . 1 . Garrison Access Hacks . | . . . . . . . . Unauthorized Hacks 4 | . 1 . . . 2 . 1 Terminals 4 | . 1 . . . 2 . 1 Botnet 4 | . 1 . . . 2 . 1 Fabricators . | . . . . . . . . Repair Stations . | . . . . . . . . Recycling Units . | . . . . . . . . Scanalyzers . | . . . . . . . . Garrison Access . | . . . . . . . . Data Cores Recovered . | . . . . . . . . Used . | . . . . . . . . Hacking Detections 11 | . 1 . . . 5 2 3 Full Trace Events 1 | . . . . . 1 . . Feedback Events . | . . . . . . . . Feedback Blocked . | . . . . . . . . Robot Schematics Acquired . | . . . . . . . . Robots Built . | . . . . . . . . Authchips . | . . . . . . . . Time . | . . . . . . . . Total Robot Build Rating . | . . . . . . . . Part Schematics Acquired . | . . . . . . . . Parts Built . | . . . . . . . . Authchips . | . . . . . . . . Time . | . . . . . . . . Total Part Build Rating . | . . . . . . . . Parts Repaired . | . . . . . . . . Time . | . . . . . . . . Parts Recycled . | . . . . . . . . Recycled Matter . | . . . . . . . . Retrieved Matter . | . . . . . . . . Retrieved Components 2 | . 2 . . . . . . Parts Scanalyzed 1 | . . . . . . 1 . Part Schematics Acquired . | . . . . . . . . Parts Damaged 1 | . . . . . . 1 . Bothacking | -11 -10 -10 -10 -9 -8 -7 -6 ------------ Run | Yrd Mat Min Exi Min Mat Fac Fac Used RIF Installer . | . . . . . . . . Robots Hacked . | . . . . . . . . Non-combat . | . . . . . . . . Combat . | . . . . . . . . Robot Hacks Applied . | . . . . . . . . Relay Couplers Released 3 | . . . . . . . 3 Programmers 3 | . . . . . . . 3 Fabnet Peak Effective % . | . . . . . . . . Robots Rewired . | . . . . . . . . Allies Hacked . | . . . . . . . . Hacks Repelled . | . . . . . . . . Allies | -11 -10 -10 -10 -9 -8 -7 -6 -------- Run | Yrd Mat Min Exi Min Mat Fac Fac Total Allies 2 | . . . . 2 . . . Largest Group 2 | . . . . 2 2 . . Highest-Rated Group 38 | . . . . 38 38 . . Highest-Rated Ally 31 | . . . . 31 31 . . Total Orders . | . . . . . . . . Ally Attacks 7 | . . . . . 7 . . Total Damage 128 | . . . . . 128 . . Kills . | . . . . . . . . Allies Corrupted . | . . . . . . . . Allies Melted . | . . . . . . . . Intel | -11 -10 -10 -10 -9 -8 -7 -6 ------- Run | Yrd Mat Min Exi Min Mat Fac Fac Robot Analysis Total . | . . . . . . . . Derelict Logs Recovered 2 | . . 1 . 1 . . . Drone Launches . | . . . . . . . . Drone Recoveries . | . . . . . . . . Exploration | -11 -10 -10 -10 -9 -8 -7 -6 ------------- Run | Yrd Mat Min Exi Min Mat Fac Fac Turns Passed 4736 | 76 183 486 263 262 1101 409 1956 Spaces Moved 2869 | 41 90 307 217 198 524 300 1192 Core 59 | 5 . . . . . . 54 Treads 252 | 36 90 126 . . . . . Legs 2258 | . . 181 217 198 468 300 894 Wheels 56 | . . . . . 56 . . Hover 73 | . . . . . . . 73 Flight 171 | . . . . . . . 171 Fastest Speed 34 | 50 160 120 120 120 110 120 34 Average Speed 122 | 151 160 136 120 120 121 120 117 Slowest Speed 190 | 160 160 160 120 120 190 120 190 Overloaded Moves . | . . . . . . . . Propulsion Burnouts . | . . . . . . . . Robots Hopped . | . . . . . . . . Cave-ins Triggered . | . . . . . . . . Exploration Rate (%) 37 | 4 23 66 61 61 43 7 31 Regions Visited 7 Branch Regions 3 Pre-discovered Areas 1 | . . 1 . . . . . Known Exits Taken 6 | . 1 1 1 1 1 1 . Unknown Exits Taken 1 | 1 . . . . . . . Scrap Searched 1 | . . 1 . . . . . Spaces Dug 39 | . . . . . 18 . 21 Terrain Destroyed 163 | . 4 3 . 19 93 . 44 Melee 21 | . . . . . . . 21 Projectile . | . . . . . . . . AOE 142 | . 4 3 . 19 93 . 23 Terrain Rammed . | . . . . . . . . Walls Destroyed . | . . . . . . . . Machines Disabled . | . . . . . . . . Actions | -11 -10 -10 -10 -9 -8 -7 -6 --------- Run | Yrd Mat Min Exi Min Mat Fac Fac Total 3761 | 53 112 340 220 218 891 335 1592 Wait 468 | . 1 5 . 8 232 4 218 Move 2862 | 40 89 306 216 197 523 299 1192 Hop . | . . . . . . . . Pick Up 58 | 8 4 1 . 1 15 9 20 Fast Attach 36 | 4 4 1 1 . 9 1 16 Attach 37 | 1 2 3 . 3 7 3 18 Detach 10 | . . . 2 . 1 . 7 Swap 29 | . . 3 . . 13 1 12 Drop 62 | . 3 1 1 3 20 9 25 Fire 160 | . 9 20 . 6 71 9 45 Melee 38 | . . . . . . . 38 Ram . | . . . . . . . . Kick 1 | . . . . . . . 1 Crush . | . . . . . . . . Escape Stasis . | . . . . . . . . Rewire . | . . . . . . . . Trap . | . . . . . . . . Miscellaneous . | . . . . . . . . Route ------- -11/Scrapyard -10/Materials -10/Mines (discovered 3 exits: [*Mat x2] / *Exi) -10/Exiles -9/Mines -8/Materials (discovered 2 exits: *Fac / *Sto) -7/Factory -6/Factory History --------- Turn | Location | Event 8 | -11/Scrapyard | Discovered new exit (range 16) 77 | -11/Scrapyard | Entered Materials 141 | -10/Materials | Discovered new exit (range 13) 249 | -10/Materials | Identified exit to Mines 260 | -10/Materials | Entered Mines 317 | -10/Mines | Build established: Mutant 431 | -10/Mines | Discovered new exit (range 10) 548 | -10/Mines | Lost 3 parts (1p2n) 562 | -10/Mines | Discovered new exit (range 14) 586 | -10/Mines | Learned location of Zion (-7) 740 | -10/Mines | Deemed a non-threat by the Exiles lab entrance 741 | -10/Mines | Discovered new exit (range 5) 745 | -10/Mines | Identified exit to Exiles 746 | -10/Mines | Entered Exiles 774 | -10/Exiles | Met 8R-AWN 796 | -10/Exiles | Met EX-HEX 837 | -10/Exiles | Met EX-BIN 854 | -10/Exiles | Aligned with FarCom system 855 | -10/Exiles | Given EX-Vault access code 882 | -10/Exiles | Opened EX-Vault 891 | -10/Exiles | Found AWS/Gauss 917 | -10/Exiles | Warned to stay clear of 0b10 Research branches 951 | -10/Exiles | Met EX-DEC 992 | -10/Exiles | Discovered new exit (range 15) 1007 | -10/Exiles | Identified exit to Mines 1009 | -10/Exiles | Left Exiles lab with AWS/Gauss 1009 | -10/Exiles | Entered Mines 1257 | -9/Mines | Discovered new exit (range 6) 1262 | -9/Mines | Identified exit to Materials 1271 | -9/Mines | Entered Materials 1271 | -8/Materials | Accompanied by 2 allies 1271 | -8/Materials | Evolved 4 slots: Propulsion x2, Utility x2 1272 | -8/Materials | Identified exit to Factory 1276 | -8/Materials | Led the pair of lost Derelicts to an unsafe place 1325 | -8/Materials | Build established: Scavenger-Mutant 2030 | -8/Materials | Lost 3 parts (1n2u) 2130 | -8/Materials | Discovered new exit (range 7) 2203 | -8/Materials | Identified exit to Storage 2296 | -8/Materials | Destroyed 9 combat bots 2372 | -8/Materials | Entered Factory 2372 | -7/Factory | Evolved 2 slots: Utility x2 2606 | -7/Factory | Build established: Mutant 2737 | -7/Factory | Discovered new exit (range 5) 2744 | -7/Factory | Identified exit to Factory 2781 | -7/Factory | Entered another Factory area 2781 | -6/Factory | Evolved 2 slots: Utility x1, Weapon x1 3108 | -6/Factory | Build established: Gunner 3873 | -6/Factory | Cargo convoy interrupted 3995 | -6/Factory | Lost 4 parts (1n3u) 4147 | -6/Factory | Lost 3 parts (2n1w) 4341 | -6/Factory | Lost 7 parts (1p2n2u2w) 4397 | -6/Factory | Build established: Mutant 4674 | -6/Factory | Core integrity fell below 50% 4710 | -6/Factory | Released all parts (6) 4714 | -6/Factory | Core integrity fell below 20% 4715 | -6/Factory | Lost 4 parts (1p2n1u) 4721 | -6/Factory | Spotted B-75 Beast 4737 | -6/Factory | Destroyed by B-75 Beast with Magnetic Acceleration Cannon Last Messages --------------- 04691_ K-01 Serf collects debris. 04692_ S-27 Virus destroyed. 04710_ Released Adv. Terrain Scan Processor. 04710_ Released Katana. 04710_ Released Xenon Bombardment Thruster. 04710_ Released Imp. Targeting Computer. 04710_ Released Broken Imp. Signal Interpreter. 04710_ Released Med. Storage Unit. 04714_ Penetrated by Slug. 04716_ Acquired 29 matter. 04719_ U-05 Engineer lays Concrete. 04721_ System corrupted: Heat flow error (+287). 04721_ U-05 Engineer lays Concrete. 04722_ U-05 Engineer builds a Wall. 04723_ U-05 Engineer lays Concrete. 04725_ K-01 Serf cleans the Repair Station. 04727_ U-05 Engineer lays Concrete. 04734_ Critical hit (Meltdown: +330). 04737_ R-10 Processor inserts Wheel into recycling unit. Map ----- +----------------------------------------------------+ | ?????????????????????????????????????????????????? | | ?????????????????????????????????????????????????? | | ?????????????????????????????????????????????????? | | ?????????????????????????????????????????????????? | | ?????????????????????????????????????????????????? | | ?????????????????????????????????????????????????? | | ?????????????????????????????????????????????????? | | ?????????????????????????????????????????????????? | | ?????????????????????????????????????????????????? | | ?????????????????????????????????????????????????? | | ?????????????????????????????????????????????????? | | ????????????????????? ????????????????????????? | | ???????????????????# C????????????????????????? | | ???????????????????#u ????????????????????????? | | ???????????????????# ????????????????????????? | | ???????????????????# ????????????????????????? | | ???????????????????# ????????????????????????? | | ???????????????????# ????????????????????????? | | ???????????????????# ##############??????????? | | ???????????????????# # #??????????? | | ???????????????????#w # ! #??????????? | | ???????????????????# # #??????????? | | ???????????????????# # #??????????? | | ???????????????????#t # #??????????? | | ???????????????????# ;% #??????????? | | ???????????????????# @ """ #??????????? | | ???????#####????#### # """ ??????????????? | | ####???""""#????# # #""" """ ??????????????? | | ! ####""F"###### # k ""YR "" ??????????????? | | # #""" "" ??????????????? | | "" # # ??????????????? | | "" # """" ! ###########?????????????? | | "" # """" BB ! #???????????????????????? | | "" + """" ] BBs #???????????????????????? | | # """" "" #???????????????????????? | | "" # """" h """s #???????????????????????? | | "" # """" !! F"s ##############???????????? | | "" # !! """ # #??????????? | | "" ## !! "" + #??????????? | | ## # #??????????? | | ##### # = #??????????? | | ????# ### ##### ## #??????????? | | ????# # #???# ## #??????????? | | ????# # # #???# ################??????????? | | ????# ## ##???#+#?????????????????????????? | | ##### #! ???????????????????????????????? | | # # """ ??????????????????????????????? | | # # ""R" ??????????????????????????????? | | # # "" ? ??????????????????????????????? | | # # ? ????????????????????????????????? | +----------------------------------------------------+ Best States ------------- Heat Dissipation 75 Energy Generation 18 Energy Capacity 800 Matter Stores 300 Matter Capacity 300 Sight Range 16 Terrain Scan Density 210 Jamming Range 12 Armor Coverage 225 Propulsion Shielding 66 Weapon Shielding 33 Evasion (%) 55 Targeting Accuracy 12 Recoil Reduction 2 Energy Filtering 30 Item Schematics ----------------- None Robot Schematics ------------------ None Fabricated ------------ Nothing Alien Tech Used ----------------- None Achievements -------------- None Challenges ------------ None Game ------ Seed AbsorptionArcNeutralizer Manual? 0 Play Time 00:52:51 Cumulative 39.7 hours Start 2024.11.11 @ 00:51:19 End 2024.11.11 @ 01:42:04 Sessions 1 Manual Loads 0 Difficulty Rogue Special Mode None Game No. 59 Rogue 59 Adventurer 0 Explorer 0 Win Type - Total 1 Types 1/0/0/0/0/0/0/0/0 Lore% 22 Gallery% 35 Achievement% 32 Wizard Run 0 Options --------- Layout 1 ASCII 0 Keyboard 0 Movement Mouse Keybinds 0 Fullscreen 2 Font 32/SmallcapsGlow Map View 50x35 Zoom Use 0% Tactical HUD 1 Map Filters NONE Filters NONE Steam 1 RUN: 2b2f50c2-069d-4c13-a319-9aaf5e8e124c